bitfinex/quotes_ETHUSD_20250508
["timestamp","ask_amount","ask_price","bid_price","bid_amount"]
[1746746847705,0.8067,2183.0,2182.5,3.06754713]
[1746746848003,4.58169156,2182.6,2182.5,3.06754713]
[1746746848405,6.22629666,2183.0,2182.5,3.06754713]
[1746746848406,4.58136196,2182.8,2182.5,3.06754713]
[1746746848595,4.58154449,2182.7,2182.5,3.06754713]
[1746746849209,4.58169156,2182.6,2182.5,3.06754713]
[1746746850292,4.5823581,2182.3,2182.1,0.34013589]
[1746746850465,4.5823581,2182.3,2182.1,6.11]
[1746746850681,4.58253139,2182.2,2182.1,6.11]
[1746746851115,4.5823581,2182.3,2182.1,6.11]
[1746746851116,0.91632361,2182.6,2182.1,6.11]
[1746746851305,4.58144668,2182.8,2182.3,4.58217745]
[1746746851511,4.58154111,2182.7,2182.3,12.3003861]
[1746746851917,30.0,2183.0,2182.3,7.71820865]
[1746746852219,4.58199808,2182.5,2182.3,6.11]
[1746746852385,30.0,2183.0,2182.3,6.11]
[1746746852587,4.5820053,2182.5,2182.3,6.11]
[1746746852784,4.58180475,2182.6,2182.3,6.11]
[1746746853505,4.58106189,2182.9,2182.3,6.11]
[1746746853709,8.21247973,2182.9,2182.3,6.11]
[1746746853904,4.58127176,2182.8,2182.3,6.11]
[1746746854109,4.5820793,2182.5,2182.3,9.299]
[1746746854633,4.58211143,2182.4,2182.3,6.11]
[1746746858345,4.5826544,2182.2,2182.0,6.393]
[1746746858540,4.5826544,2182.2,2182.0,12.503]
[1746746859546,4.5826544,2182.2,2182.0,12.84954418]
[1746746859919,4.58254633,2182.2,2182.0,12.84954418]
[1746746861742,4.5824441,2182.3,2182.0,12.84954418]
[1746746861951,4.58254295,2182.2,2182.0,12.84954418]
[1746746862451,4.5824441,2182.3,2182.0,12.84954418]
[1746746862452,4.58274139,2182.1,2182.0,12.84954418]
[1746746862654,4.58213973,2182.4,2181.8,0.7877]
[1746746862833,4.58304977,2182.0,2181.8,3.9777]
[1746746863355,4.58316146,2181.9,2181.8,3.9777]
[1746746863853,4.58316146,2181.9,2181.8,6.11]
[1746746864214,6.09426426,2181.9,2181.5,16.489]
[1746746864421,4.58397953,2181.6,2181.3,13.3208]
[1746746864919,4.58401481,2181.5,2181.3,13.3208]
[1746746865247,4.58401481,2181.5,2181.3,12.504]
[1746746865421,4.58421197,2181.4,2181.3,3.205]
[1746746865620,4.58393534,2181.6,2181.3,3.205]
[1746746865964,4.58310259,2182.0,2181.5,4.58392155]
[1746746866128,7.58310259,2182.0,2181.5,10.69392155]
[1746746866323,4.58281438,2182.1,2181.5,6.11]
[1746746866521,4.58255185,2182.2,2181.8,5.35330653]
[1746746866724,4.58249845,2182.3,2181.8,0.7701]
[1746746866925,4.58249845,2182.3,2181.8,3.9751]
[1746746867420,14.63636722,2182.9,2181.8,3.9751]
[1746746867421,4.57995329,2183.5,2181.9,6.11]
[1746746867655,4.57995329,2183.5,2182.0,4.47613541]
[1746746867656,4.58127176,2182.8,2182.0,4.47613541]
[1746746867854,0.7598,2182.9,2182.2,4.58253139]
[1746746868133,0.7598,2182.9,2182.5,0.7701]
[1746746868134,4.58115926,2182.9,2182.5,0.7701]
[1746746868535,34.58102667,2183.0,2182.5,5.35198488]
[1746746868841,4.58169141,2182.7,2182.5,0.7701]
[1746746869049,4.58157611,2182.7,2182.5,0.7701]
[1746746869274,4.58133886,2182.8,2182.4,0.3377201]
[1746746869480,4.58148373,2182.7,2182.3,5.39484235]
[1746746869840,3.0,2182.9,2182.4,4.58196984]
[1746746870062,7.58122775,2182.9,2182.4,4.58196984]
[1746746870266,4.58187307,2182.6,2182.3,0.8127]
[1746746870463,4.58131909,2182.8,2182.3,5.39500389]
[1746746870778,4.58143139,2182.8,2182.3,5.39497919]
[1746746870977,30.0,2183.0,2182.3,5.39497919]
[1746746870978,30.0,2183.0,2182.6,4.58163244]
[1746746871178,30.0,2183.0,2182.7,9.00135133]
[1746746871342,30.0,2183.0,2182.7,3.9618]
[1746746871536,30.0,2183.0,2182.9,4.58106189]
[1746746871877,30.0,2183.0,2182.8,0.3480718]
[1746746872180,30.0,2183.0,2182.8,4.62704511]
[1746746872354,30.0,2183.0,2182.9,4.58106189]
[1746746872551,30.0,2183.0,2182.9,12.03078548]
[1746746872782,27.25658755,2183.0,2182.9,13.36328548]
[1746746872951,26.49629399,2183.0,2182.9,13.36328548]
[1746746873500,26.49629399,2183.0,2182.9,45.58224148]
[1746746873710,22.15837402,2183.0,2182.9,55.86304148]
[1746746873864,4.57817052,2184.3,2183.9,5.35841629]
[1746746874059,4.57817052,2184.3,2183.9,3.9686]
[1746746874385,8.7717441,2185.1,2183.9,3.9686]
[1746746874386,0.8052,2185.0,2183.9,4.01438484]
[1746746874591,0.8052,2185.0,2184.2,4.5782037]
[1746746874592,4.57739759,2184.7,2184.2,4.5782037]
[1746746874904,4.57753824,2184.6,2183.9,8.89002237]
[1746746875218,4.57700186,2184.9,2184.4,4.5779038]
[1746746875376,4.57694576,2184.9,2184.5,3.99407164]
[1746746875558,3.0,2185.1,2184.5,3.9483]
[1746746875771,4.57720757,2184.8,2184.5,3.9483]
[1746746876012,4.5772992,2184.7,2184.5,3.9483]
[1746746876773,4.5772992,2184.7,2184.5,3.193]
[1746746877005,4.57749702,2184.6,2184.5,3.193]
[1746746877313,5.49259609,2184.8,2184.5,3.193]
[1746746877484,5.49259609,2184.8,2184.5,3.23877445]
[1746746877685,0.9154091,2184.8,2184.5,3.23877445]
[1746746877985,5.49257697,2184.8,2184.5,3.193]
[1746746878292,4.57698396,2184.9,2184.4,6.377]
[1746746878293,4.57770656,2184.5,2184.4,6.377]
[1746746879019,4.57770656,2184.5,2184.4,3.188]
[1746746879699,4.57749702,2184.6,2183.6,5.41017905]
[1746746879903,4.57863888,2184.1,2183.9,3.191]
[1746746880300,3.0,2184.6,2183.9,3.191]
[1746746880506,4.57830754,2184.3,2183.9,3.191]
[1746746880804,4.57854597,2184.1,2183.9,3.191]
[1746746881114,4.57830078,2184.3,2183.9,3.191]
[1746746881313,0.47756561,2184.5,2184.0,0.04578721]
[1746746881613,4.57753333,2184.6,2184.1,4.57845641]
[1746746881812,7.57761735,2184.6,2184.1,4.57845641]
[1746746882012,0.7687,2184.7,2184.1,0.8133]
[1746746882219,4.57821188,2184.3,2184.0,6.11]
[1746746882781,0.45782119,2184.3,2184.0,6.11]
[1746746883276,4.57772044,2184.5,2184.0,6.15578306]
[1746746883481,3.0,2184.6,2184.2,4.57824383]
[1746746883717,3.0,2184.6,2184.2,4.62402075]
[1746746883877,0.8139,2185.0,2184.2,0.04577692]
[1746746884080,4.57729966,2184.7,2184.3,4.57791968]
[1746746884275,4.57729966,2184.7,2184.3,7.76591968]
[1746746884524,4.57729966,2184.7,2184.3,3.188]
[1746746884906,4.57759539,2184.6,2184.3,3.188]
[1746746885101,4.57791613,2184.4,2184.3,3.188]
[1746746885590,4.57833531,2184.2,2184.1,3.187]
[1746746885790,4.57786951,2184.5,2184.1,3.187]
[1746746886185,4.57786951,2184.5,2184.0,13.87657552]
[1746746886383,4.5783703,2184.2,2184.0,9.298]
[1746746886583,5.49334758,2184.5,2184.0,9.298]
[1746746886798,4.57795584,2184.4,2184.0,9.34378178]
[1746746887084,4.57803655,2184.4,2184.0,9.34378178]
[1746746887284,4.57803655,2184.4,2184.0,13.92253583]
[1746746887486,5.49335427,2184.5,2184.0,13.87675405]
[1746746887681,4.57803544,2184.4,2184.0,6.11]
[1746746887877,4.57834183,2184.2,2184.0,9.297]
[1746746888314,4.57854493,2184.1,2184.0,9.297]
[1746746888682,4.57842792,2184.2,2184.0,9.297]
[1746746889697,4.57854493,2184.1,2184.0,6.11]
[1746746890105,5.03639942,2184.1,2184.0,6.11]
[1746746891324,4.57893968,2184.0,2183.8,9.297]
[1746746891529,4.57938361,2183.7,2183.6,6.11]
[1746746891687,4.5797075,2183.6,2183.4,6.374]
[1746746891904,4.57946783,2183.7,2183.4,6.374]
[1746746892138,4.57925745,2183.8,2183.4,6.374]
[1746746892425,5.03651244,2184.1,2183.4,6.41979524]
[1746746892627,4.57953611,2183.7,2183.4,6.374]
[1746746893706,4.57925133,2183.8,2183.4,6.374]
[1746746893908,4.57946342,2183.7,2183.4,6.374]
[1746746894613,4.57905627,2183.9,2183.4,6.374]
[1746746894828,0.97368055,2183.9,2183.4,6.374]
[1746746895037,5.55281226,2183.9,2183.4,6.374]
[1746746895240,5.55274275,2183.9,2183.4,10.95385885]
[1746746895542,4.57925557,2183.8,2183.4,10.95385885]
[1746746897433,4.57925557,2183.8,2183.4,12.484]
[1746746897596,4.57948201,2183.7,2183.4,12.484]
[1746746898337,5.19245831,2183.8,2183.4,17.06400155]
[1746746898518,0.61320274,2183.8,2183.5,4.5797304]
[1746746898720,4.57829662,2184.3,2183.7,4.57925535]
[1746746898924,4.57889103,2184.0,2183.7,6.11]
[1746746899233,4.57861923,2184.1,2183.7,10.68935825]
[1746746899730,1.6948437,2184.5,2183.9,0.7969]
[1746746900029,0.9155437,2184.5,2184.2,4.57832097]
[1746746900217,4.57779134,2184.5,2184.1,10.68846584]
[1746746900416,4.57779134,2184.5,2184.1,6.11]
[1746746900621,7.57779134,2184.5,2184.1,6.11]
[1746746900833,3.0,2184.5,2184.2,4.5783132]
[1746746901026,4.57730359,2184.7,2184.3,4.57807552]
[1746746901338,4.57730359,2184.7,2184.2,4.6240217]
[1746746901339,0.99336842,2184.6,2184.2,4.6240217]
[1746746901637,4.57740583,2184.7,2184.3,4.57811237]
[1746746901815,4.57740583,2184.7,2184.4,0.7611]
[1746746902933,4.57762328,2184.6,2184.2,0.8157]
[1746746903541,4.57762328,2184.6,2184.2,5.39402202]
[1746746903913,4.57762328,2184.6,2184.2,0.8157]
[1746746904123,0.91549464,2184.6,2184.2,0.8157]
[1746746904328,4.57812571,2184.3,2184.1,6.11]
[1746746904617,4.57801031,2184.4,2184.1,6.11]
[1746746905548,4.57806768,2184.4,2184.1,6.11]
[1746746905846,4.57813275,2184.3,2184.1,6.11]
[1746746906212,4.57833531,2184.2,2184.0,6.8728]
[1746746906447,0.45783353,2184.1,2184.0,6.11]
[1746746906618,4.57807152,2184.4,2184.0,6.11]
[1746746906828,3.7581,2184.6,2184.0,6.1557851]
[1746746907030,4.57760249,2184.6,2184.2,4.57830827]
[1746746907233,7.57760249,2184.6,2184.1,5.35675842]
[1746746907409,4.57734451,2184.7,2184.2,4.578255]
[1746746907751,4.57750928,2184.6,2184.2,4.578255]
[1746746908052,4.57750928,2184.6,2184.1,0.7784]
[1746746908217,4.57749762,2184.6,2184.2,4.5782272]
[1746746908653,5.11521248,2184.7,2184.2,9.15645617]
[1746746908850,4.57736803,2184.7,2184.3,4.57810841]
[1746746909228,4.57718393,2184.8,2184.4,6.372]
[1746746909423,9.15395923,2184.9,2184.4,10.9499065]
[1746746909747,4.57710913,2184.8,2184.4,10.9499065]
[1746746910451,4.57630335,2185.2,2184.5,5.45288186]
[1746746910756,4.57617425,2185.3,2184.6,6.11]
[1746746910926,4.57645451,2185.1,2184.7,0.04576685]
[1746746912748,4.57665301,2185.1,2184.7,0.04576685]
[1746746913258,4.57668682,2185.0,2184.7,0.04576685]
[1746746913421,0.7793,2185.4,2184.7,6.23703088]
[1746746913625,4.57621386,2185.3,2184.9,0.7952]
[1746746913851,4.57621386,2185.3,2184.9,7.21196331]
[1746746914056,4.57621386,2185.3,2184.9,17.89872806]
[1746746914255,4.57621386,2185.3,2184.9,17.85296475]
[1746746914475,4.57621386,2185.3,2185.0,2.24298517]
[1746746914764,4.57621386,2185.3,2185.0,8.35298517]
[1746746915141,4.57626518,2185.2,2185.0,8.35298517]
[1746746915460,4.57626518,2185.2,2185.0,6.11]
[1746746915670,4.57644959,2185.1,2185.0,6.11]
[1746746916729,4.5768685,2184.9,2184.8,6.11]
[1746746917149,4.57677962,2185.0,2184.8,6.11]
[1746746917444,4.57677962,2185.0,2184.8,6.721]
[1746746918675,4.5768685,2184.9,2184.8,6.11]
[1746746921356,4.57728749,2184.7,2184.6,6.11]
[1746746922088,4.57770656,2184.5,2184.4,6.37]
[1746746922299,4.57770656,2184.5,2184.4,3.186]
[1746746927308,4.57770656,2184.5,2184.4,4.74075471]
[1746746927813,4.5774096,2184.7,2184.4,5.53045471]
[1746746928303,4.57644959,2185.1,2184.5,0.04577594]
[1746746928511,4.57739325,2184.7,2184.5,0.04577077]
[1746746928715,4.5775752,2184.6,2184.4,5.53045471]
[1746746929007,4.57770656,2184.5,2184.4,5.53045471]
[1746746929686,4.57770656,2184.5,2184.4,3.186]
[1746746933805,7.57770656,2184.5,2183.8,9.17754713]
[1746746934005,4.57867285,2184.1,2183.9,12.476]
[1746746934613,4.57837807,2184.2,2183.9,12.476]
[1746746935035,4.57857004,2184.1,2183.9,12.476]
[1746746935200,4.57852632,2184.2,2183.9,14.25771976]
[1746746935396,4.57818588,2184.3,2183.9,14.25771976]
[1746746935894,4.5785103,2184.2,2183.9,14.25771976]
[1746746936435,4.5770555,2184.9,2184.3,4.57794625]
[1746746936636,4.57768468,2184.6,2184.4,6.367]
[1746746937210,4.57770656,2184.5,2184.4,6.367]
[1746746937423,4.57686935,2184.9,2184.4,6.367]
[1746746937642,4.57738332,2184.7,2184.4,6.367]
[1746746937949,9.15538536,2184.6,2184.4,6.367]
[1746746938234,9.15537343,2184.6,2184.4,6.367]
[1746746938414,4.57768299,2184.6,2184.4,6.367]
[1746746938742,4.57762747,2184.6,2184.4,6.367]
[1746746938939,4.57762747,2184.6,2184.4,7.08655]
[1746746939140,4.57770656,2184.5,2184.4,7.08655]
[1746746940743,4.57762747,2184.6,2184.4,7.08655]
[1746746940902,4.57731948,2184.7,2184.4,7.08655]
[1746746941103,4.57762231,2184.6,2184.5,1.17103527]
[1746746941342,4.57762231,2184.6,2184.4,6.367]
[1746746941343,4.57770656,2184.5,2184.4,6.367]
[1746746942350,4.57762231,2184.6,2184.4,9.294]
[1746746942644,4.57770656,2184.5,2184.4,12.476]
[1746746944406,4.57770656,2184.5,2184.4,9.294]
[1746746944745,4.57770656,2184.5,2184.4,6.11]
[1746746945248,4.57812571,2184.3,2184.2,6.11]
[1746746945406,4.57719782,2184.8,2184.3,5.39013518]
[1746746945605,4.57696802,2184.9,2184.5,4.57756642]
[1746746945812,4.57696802,2184.9,2184.7,0.8121]
[1746746946148,4.57644959,2185.1,2184.7,1.99204347]
[1746746946451,4.57414692,2186.2,2185.4,9.121081]
[1746746946618,4.57458623,2186.0,2185.7,0.8121]
[1746746946823,4.57498398,2185.8,2185.7,0.8121]
[1746746947019,3.0,2186.6,2185.8,0.8025]
[1746746947218,4.57462288,2186.0,2185.8,0.8025]
[1746746947615,0.7541,2186.6,2185.8,3.84824282]
[1746746947616,4.57353332,2186.5,2185.8,3.84824282]
[1746746947815,4.57321575,2186.7,2186.1,8.12423574]
[1746746948113,4.91193031,2186.9,2186.2,7.1811]
[1746746948313,4.57345163,2186.6,2186.3,0.77311]
[1746746948720,9.48431029,2187.1,2186.5,4.57345342]
[1746746948923,9.48431029,2187.1,2186.6,8.27234352]
[1746746949145,9.48431029,2187.1,2186.7,6.363]
[1746746949347,4.57249703,2187.0,2186.7,6.363]
[1746746949530,4.57249703,2187.0,2186.7,6.96868987]
[1746746950261,4.91193031,2187.1,2186.7,3.18]
[1746746950420,4.57275223,2186.9,2186.7,3.18]
[1746746950619,4.57289189,2186.8,2186.7,3.18]
[1746746951530,4.57320446,2186.7,2186.4,7.1159]
[1746746951854,4.57292865,2186.8,2186.5,0.04573093]
[1746746952031,4.57292865,2186.8,2186.5,0.83920502]
[1746746952769,4.57292865,2186.8,2186.5,0.79347409]
[1746746953054,4.57331016,2186.6,2186.5,0.79347409]
[1746746953421,4.57351932,2186.5,2186.4,10.18344713]
[1746746953622,4.57351932,2186.5,2186.4,6.24654713]
[1746746954235,4.57351932,2186.5,2186.4,3.179]
[1746746954753,4.57414692,2186.2,2186.1,0.8325]
[1746746955055,4.57414692,2186.2,2186.1,7.1915]
[1746746956160,4.57414692,2186.2,2186.1,6.359]
[1746746957745,4.57414692,2186.2,2186.1,8.6431]
[1746746958257,4.57414692,2186.2,2186.1,6.359]
[1746746958659,7.57414692,2186.2,2186.1,6.359]
[1746746958870,4.57414692,2186.2,2186.1,6.359]
[1746746960421,3.0,2186.6,2186.1,6.359]
[1746746960422,4.57331016,2186.6,2186.1,6.359]
[1746746960626,4.57414692,2186.2,2186.1,6.359]
[1746746960874,4.57414692,2186.2,2186.1,8.6431]
[1746746961748,4.57414692,2186.2,2186.1,6.359]
[1746746969070,4.57441891,2186.1,2185.4,0.7883]
[1746746969240,4.57647823,2185.1,2185.0,3.177]
[1746746969565,4.57634109,2185.2,2185.0,4.11925471]
[1746746969768,4.57498398,2185.8,2185.2,0.55]
[1746746969769,4.57516037,2185.8,2185.2,0.55]
[1746746969970,4.5739377,2186.3,2185.5,3.0]
[1746746970276,4.5739377,2186.3,2185.6,6.4007449]
[1746746970277,4.57479065,2185.9,2185.6,6.4007449]
[1746746970445,4.57479065,2185.9,2185.7,0.64007449]
[1746746970849,4.57498398,2185.8,2185.7,0.64007449]
[1746746971049,4.57490245,2185.9,2185.7,0.64007449]
[1746746971505,4.57498398,2185.8,2185.7,0.64007449]
[1746746972992,4.57498398,2185.8,2185.7,3.81707449]
[1746746974402,4.57498398,2185.8,2185.6,3.178]
[1746746974403,4.5751933,2185.7,2185.6,3.178]
[1746746974701,4.5751933,2185.7,2185.6,6.355]
[1746746975704,4.5751933,2185.7,2185.6,3.178]
[1746746976062,4.57626026,2185.2,2185.1,3.178]
[1746746976362,4.57626026,2185.2,2185.1,6.355]
[1746746977804,0.7568,2185.9,2185.1,7.16261547]
[1746746977973,4.57581575,2185.5,2185.3,0.7543]
[1746746978166,4.57572517,2185.5,2185.3,0.7543]
[1746746978369,4.57572517,2185.5,2185.3,0.80005402]
[1746746978576,4.57572517,2185.5,2185.3,2.35396559]
[1746746978876,4.57550182,2185.6,2185.3,2.35396559]
[1746746979507,4.57563679,2185.5,2185.3,2.35396559]
[1746746980014,5.33158731,2185.9,2185.4,7.57574257]
[1746746980015,4.57486007,2185.9,2185.4,7.57574257]
[1746746980173,4.57509371,2185.8,2185.5,1.40405875]
[1746746980375,4.57489689,2185.9,2185.6,6.354]
[1746746980599,9.14987831,2185.9,2185.6,6.354]
[1746746980885,4.57489689,2185.9,2185.6,6.354]
[1746746981209,4.57499745,2185.8,2185.6,6.354]
[1746746981408,4.57499745,2185.8,2185.6,7.42980587]
[1746746982011,4.5751933,2185.7,2185.6,7.42980587]
[1746746982615,4.57506324,2185.8,2185.6,7.42980587]
[1746746984414,4.5751933,2185.7,2185.6,7.42980587]
[1746746984714,4.5751933,2185.7,2185.6,6.354]
[1746746984900,4.57542943,2185.6,2185.1,0.7675]
[1746746985217,4.57624016,2185.2,2185.1,0.7675]
[1746746985392,4.57624016,2185.2,2185.1,7.1215]
[1746746985917,4.57624016,2185.2,2185.1,6.354]
[1746746986212,4.57644959,2185.1,2185.0,3.06754713]
[1746746987812,4.57573751,2185.5,2185.1,0.8017]
[1746746987976,4.57603193,2185.3,2185.1,0.8017]
[1746746988374,4.57644959,2185.1,2185.0,0.94215471]
[1746746988910,4.57561241,2185.5,2185.0,0.94215471]
[1746746989095,4.57644959,2185.1,2185.0,0.94215471]
[1746746989636,4.57625645,2185.2,2185.0,0.94215471]
[1746746989803,4.57625645,2185.2,2185.1,0.47443547]
[1746746990194,4.57644959,2185.1,2185.0,0.94215471]
[1746746990830,4.57637838,2185.2,2185.0,0.94215471]
[1746746991502,0.7855,2185.5,2185.0,0.98791545]
[1746746991709,4.5761554,2185.3,2185.0,0.98791545]
[1746746992445,4.57597401,2185.4,2185.0,0.98791545]
[1746746992722,4.57597401,2185.4,2185.1,0.93669359]
[1746746992906,4.57597401,2185.4,2185.2,0.04575762]
[1746746993224,4.57597401,2185.4,2185.3,3.175]
[1746746993437,5.33900411,2185.8,2185.3,11.47702316]
[1746746993645,4.57510411,2185.8,2185.4,3.04574946]
[1746746993804,4.57510411,2185.8,2185.5,1.38261311]
[1746746994001,4.57506201,2185.8,2185.6,0.04574946]
[1746746994944,4.57489412,2185.9,2185.6,0.04574946]
[1746746995302,4.57499805,2185.8,2185.6,0.04574946]
[1746746995541,4.5748661,2185.9,2185.6,0.94616165]
[1746746995950,9.14984218,2185.9,2185.6,0.94616165]
[1746746996115,9.14984142,2185.9,2185.6,0.94616165]
[1746746996311,4.57515325,2185.8,2185.6,0.90041219]
[1746746996509,4.5751933,2185.7,2185.6,3.175]
[1746746996838,4.5751933,2185.7,2185.3,9.35]
[1746746996839,4.57582135,2185.4,2185.3,9.35]
[1746746997156,4.57582135,2185.4,2185.3,9.41754713]
[1746746999114,4.57582135,2185.4,2185.3,6.24254713]
[1746746999744,4.57582135,2185.4,2185.3,3.175]
[1746747000347,4.57644959,2185.1,2185.0,0.8299]
[1746747000652,4.57637688,2185.2,2185.0,1.25461464]
[1746747000975,4.57608169,2185.3,2185.0,1.25461464]
[1746747000976,4.57613779,2185.3,2185.0,1.25461464]
[1746747001160,5.33871324,2185.7,2185.2,5.12613254]
[1746747001342,0.7901,2186.0,2185.4,0.819]
[1746747001665,0.7901,2186.3,2185.7,0.819]
[1746747001870,4.57498398,2185.8,2185.7,0.819]
[1746747002072,4.5751933,2185.7,2185.6,3.0]
[1746747002367,4.57582135,2185.4,2185.3,16.477]
[1746747003170,4.57561198,2185.5,2184.8,3.06754713]
[1746747003171,4.57609012,2185.3,2184.8,3.06754713]
[1746747003466,4.57540263,2185.6,2184.8,9.4633115]
[1746747003671,4.57635113,2185.2,2184.8,9.4633115]
[1746747004236,4.57593193,2185.4,2184.8,14.04022919]
[1746747004446,4.57613614,2185.3,2184.9,1.84608109]
[1746747004680,4.57613614,2185.3,2185.0,0.04575956]
[1746747005275,5.35470968,2185.7,2185.0,0.04575956]
[1746747005276,4.57542731,2185.6,2185.0,0.04575956]
[1746747005561,4.57542731,2185.6,2185.0,0.04575875]
[1746747005562,4.5758828,2185.4,2185.0,0.04575875]
[1746747005755,4.57632456,2185.2,2184.9,0.04576038]
[1746747005956,4.57645319,2185.1,2184.9,1.52653006]
[1746747006160,4.57645319,2185.1,2184.9,1.48076968]
[1746747006372,0.7731,2185.5,2185.0,3.174]
[1746747006572,4.57644959,2185.1,2185.0,3.21976433]
[1746747006863,0.7731,2185.5,2185.0,3.174]
[1746747007072,4.57644959,2185.1,2185.0,3.174]
[1746747007930,4.5768685,2184.9,2184.8,6.24354713]
[1746747008238,4.5768685,2184.9,2184.8,9.41754713]
[1746747008460,4.5768685,2184.9,2184.8,10.43602184]
[1746747009193,4.57654949,2185.1,2184.8,10.43602184]
[1746747009390,4.57654949,2185.1,2184.8,10.48178843]
[1746747009754,4.5768685,2184.9,2184.8,10.43602184]
[1746747010250,4.5768685,2184.9,2184.8,9.17754713]
[1746747010664,4.57749702,2184.6,2184.5,6.24354713]
[1746747010863,4.57717,2184.8,2184.5,12.35354713]
[1746747011064,4.57749702,2184.6,2184.5,12.35354713]
[1746747012598,4.57716117,2184.8,2184.5,12.35354713]
[1746747012759,4.57716117,2184.8,2184.6,3.20055471]
[1746747013087,4.57698421,2184.9,2184.6,3.20055471]
[1746747013452,4.57676393,2185.0,2184.6,3.24632516]
[1746747013889,9.153618,2185.0,2184.6,3.24632516]
[1746747014155,4.57704998,2184.9,2184.6,3.20055471]
[1746747014356,0.7846,2185.1,2184.7,7.74745018]
[1746747014588,0.7846,2185.1,2184.8,6.11]
[1746747014589,4.57689693,2184.9,2184.8,6.11]
[1746747018381,4.57603075,2185.3,2184.8,6.11]
[1746747018581,4.57577272,2185.5,2184.9,11.55313983]
[1746747018780,4.57577272,2185.5,2185.0,8.90790907]
[1746747019113,5.40577831,2185.6,2185.1,4.62220344]
[1746747019254,0.7761,2185.8,2185.3,0.55]
[1746747019461,4.57383235,2186.4,2185.3,0.55]
[1746747019462,4.57491286,2185.9,2185.4,11.45322507]
[1746747019750,4.57493858,2185.9,2185.5,4.86812056]
[1746747019864,4.57462512,2186.0,2185.6,0.04574767]
[1746747020058,0.7761,2186.3,2185.7,13.85814142]
[1746747020392,4.57426584,2186.2,2185.8,5.42374383]
[1746747020606,4.57398351,2186.3,2185.9,4.57473898]
[1746747020760,4.57398351,2186.3,2186.0,9.33173931]
[1746747020963,4.57398351,2186.3,2186.0,9.56388055]
[1746747021186,0.8087,2186.9,2186.0,23.35726223]
[1746747021374,5.38150399,2186.9,2186.3,4.57389929]
[1746747021558,5.38147194,2186.9,2186.4,3.21872948]
[1746747021762,5.36499576,2187.1,2186.6,4.57329442]
[1746747021961,4.5725271,2187.0,2186.7,0.0457255]
[1746747022185,4.57237847,2187.1,2186.7,0.0457255]
[1746747022409,4.57284597,2186.9,2186.6,0.752]
[1746747022706,4.57257072,2187.0,2186.6,0.752]
[1746747022916,4.57257072,2187.0,2186.6,1.99707725]
[1746747023121,4.5720843,2187.2,2186.6,1.99707725]
[1746747023122,4.57236916,2187.1,2186.7,0.04572405]
[1746747023404,4.57259541,2187.0,2186.7,0.04572405]
[1746747023767,4.57227439,2187.1,2186.7,0.04572405]
[1746747024081,4.57184656,2187.3,2186.6,1.99707725]
[1746747024290,4.57257403,2187.0,2186.6,1.99707725]
[1746747024500,4.57304503,2186.8,2186.6,0.752]
[1746747024663,4.57226464,2187.1,2186.5,3.173]
[1746747024860,5.37110914,2186.9,2186.5,6.343]
[1746747025060,1.33484466,2187.2,2186.6,0.04573293]
[1746747025363,4.57260324,2187.0,2186.5,23.3498]
[1746747025602,4.57294353,2186.8,2186.6,2.70031817]
[1746747025769,0.8016,2187.6,2186.9,0.7631]
[1746747025998,4.57165957,2187.4,2187.0,6.342]
[1746747026264,4.57176192,2187.4,2187.0,6.342]
[1746747026495,4.57087148,2187.8,2187.0,6.342]
[1746747026496,4.57186773,2187.3,2187.1,0.71051]
[1746747027265,4.57226464,2187.1,2187.0,6.342]
[1746747027585,4.57216806,2187.2,2187.0,6.342]
[1746747027802,4.57226464,2187.1,2187.0,6.342]
[1746747028297,4.57226464,2187.1,2187.0,3.171]
[1746747030693,4.57268279,2186.9,2186.8,6.11]
[1746747032200,4.57268279,2186.9,2186.7,3.171]
[1746747032201,4.57289189,2186.8,2186.7,3.171]
[1746747034390,5.3870905,2187.4,2186.8,0.7522]
[1746747034391,4.57194407,2187.3,2186.8,0.7522]
[1746747034604,4.57133946,2187.6,2187.0,0.55]
[1746747034804,0.8186,2188.0,2187.2,5.12192026]
[1746747035005,4.5705928,2187.9,2187.3,9.76564763]
[1746747035313,4.57031085,2188.1,2187.4,10.59468168]
[1746747035511,0.7867,2188.5,2187.5,19.25]
[1746747035680,0.7867,2188.5,2187.6,3.21470217]
[1746747035881,4.56986606,2188.3,2187.8,5.33810524]
[1746747036112,4.56986606,2188.3,2187.9,9.49852962]
[1746747036313,4.56986606,2188.3,2188.0,6.11]
[1746747036495,4.56986606,2188.3,2188.1,3.21469697]
[1746747036903,4.56973361,2188.4,2188.1,3.21469697]
[1746747037105,4.56970097,2188.4,2188.1,3.21469697]
[1746747037312,4.56904217,2188.7,2188.2,11.61229414]
[1746747037626,4.56829156,2189.1,2188.6,4.56903335]
[1746747037627,4.56820289,2189.1,2188.6,4.56903335]
[1746747037838,4.56809485,2189.1,2188.7,12.49568064]
[1746747038033,4.56809485,2189.1,2188.8,0.04568049]
[1746747038198,4.56776685,2189.3,2188.8,1.29524854]
[1746747038395,0.7757,2189.5,2188.8,2.08724854]
[1746747038617,4.56850472,2188.9,2188.7,6.11]
[1746747038798,4.56850472,2188.9,2188.8,3.168]
[1746747040010,4.56839575,2189.0,2188.8,3.168]
[1746747040200,4.56850472,2188.9,2188.8,3.168]
[1746747040729,4.56850472,2188.9,2188.7,6.11]
[1746747040730,4.56871345,2188.8,2188.7,6.11]
[1746747041289,4.56913095,2188.6,2188.5,9.278]
[1746747041482,4.56954852,2188.4,2188.3,6.11]
[1746747041799,4.56901694,2188.7,2188.3,13.45024697]
[1746747042118,0.8192,2189.2,2188.4,0.77]
[1746747042342,4.56859763,2188.9,2188.5,6.11]
[1746747042626,4.56913095,2188.6,2188.5,6.11]
[1746747042827,4.56933973,2188.5,2188.4,9.279]
[1746747043004,4.56933973,2188.5,2188.3,0.04569202]
[1746747043005,4.56913095,2188.6,2188.3,3.169]
[1746747043211,4.56933973,2188.5,2188.4,3.167]
[1746747044324,4.56933973,2188.5,2188.4,3.80516932]
[1746747044531,4.56954852,2188.4,2188.3,3.169]
[1746747044930,4.57017503,2188.1,2188.0,6.11]
[1746747045127,4.5705928,2187.9,2187.8,19.635]
[1746747045296,4.5705928,2187.9,2187.8,19.3604]
[1746747045995,4.5705928,2187.9,2187.8,2.8914]
[1746747046195,4.5705928,2187.9,2187.7,6.335]